bitfinex/quotes_BTCUSD_20250123
["timestamp","ask_amount","ask_price","bid_price","bid_amount"]
[1737627836504,0.76588727,101970.0,101960.0,9.17722709]
[1737627836505,0.46020625,101970.0,101960.0,9.17722709]
[1737627836674,0.31020625,101970.0,101960.0,9.17722709]
[1737627836886,0.40827425,101970.0,101960.0,9.17722709]
[1737627838142,0.51928098,101970.0,101960.0,9.17722709]
[1737627838903,0.31020625,101970.0,101960.0,9.17722709]
[1737627839124,0.31034865,101970.0,101960.0,9.17722709]
[1737627841704,0.01034865,101970.0,101960.0,9.17722709]
[1737627841909,0.01034865,101970.0,101960.0,9.22492709]
[1737627846910,0.8777774,101970.0,101960.0,9.12685009]
[1737627847123,0.76677067,101970.0,101960.0,9.07915009]
[1737627848921,0.76677067,101970.0,101960.0,9.00045009]
[1737627849124,0.74512469,101970.0,101960.0,9.00045009]
[1737627849478,0.69512469,101970.0,101960.0,9.00045009]
[1737627849619,0.69812469,101970.0,101960.0,9.00045009]
[1737627850459,0.80412469,101970.0,101960.0,9.00045009]
[1737627850878,0.70412469,101970.0,101960.0,9.00045009]
[1737627851123,0.82726503,101970.0,101960.0,8.89624298]
[1737627851326,0.85606796,101970.0,101960.0,8.85701098]
[1737627851565,0.85606796,101970.0,101960.0,8.83709098]
[1737627851700,0.87981821,101970.0,101960.0,8.83709098]
[1737627851893,0.87981821,101970.0,101960.0,8.80635191]
[1737627852120,1.66502596,101970.0,101960.0,8.70827191]
[1737627852301,1.32760596,101970.0,101960.0,8.70827191]
[1737627852503,1.15600096,101970.0,101960.0,8.70827191]
[1737627853184,1.05270096,101970.0,101960.0,8.62980791]
[1737627853416,1.05270096,101970.0,101960.0,8.61019191]
[1737627853636,1.13533121,101970.0,101960.0,8.49997001]
[1737627854048,1.13533121,101970.0,101960.0,8.42001517]
[1737627854258,1.13533121,101970.0,101960.0,8.32193517]
[1737627854467,1.83533121,101970.0,101960.0,8.17173435]
[1737627854687,1.83533121,101970.0,101960.0,8.05887159]
[1737627854898,1.93373121,101970.0,101960.0,8.05887159]
[1737627855100,1.93373121,101970.0,101960.0,8.03925559]
[1737627855306,2.07815121,101970.0,101960.0,7.89859333]
[1737627855833,2.07815121,101970.0,101960.0,7.86256725]
[1737627856055,2.12482084,101970.0,101960.0,7.84395125]
[1737627856263,2.11582084,101970.0,101960.0,7.76448725]
[1737627856667,2.12482084,101970.0,101960.0,7.76548725]
[1737627856909,2.12482084,101970.0,101960.0,7.76448725]
[1737627857111,2.13382084,101970.0,101960.0,7.72625525]
[1737627857315,2.13382084,101970.0,101960.0,7.68702325]
[1737627857536,3.00152084,101970.0,101960.0,7.66840725]
[1737627857946,2.97777059,101970.0,101960.0,7.66840725]
[1737627858158,2.89822084,101970.0,101960.0,7.58994325]
[1737627858484,2.89822084,101970.0,101960.0,7.57032725]
[1737627859164,2.84566766,101970.0,101960.0,7.49186325]
[1737627859371,2.84566766,101970.0,101960.0,7.47224725]
[1737627860443,2.84566766,101970.0,101960.0,7.43301525]
[1737627860918,2.84566766,101970.0,101960.0,7.40585984]
[1737627861106,2.84566766,101970.0,101960.0,7.30777984]
[1737627861310,2.84566766,101970.0,101960.0,7.28816384]
[1737627861514,2.74566766,101970.0,101960.0,7.26854784]
[1737627861715,2.47652666,101970.0,101960.0,7.26854784]
[1737627861938,2.29573466,101970.0,101960.0,7.26854784]
[1737627862127,2.48179466,101970.0,101960.0,7.26884688]
[1737627862336,2.64560266,101970.0,101960.0,7.26884688]
[1737627862540,2.64210111,101970.0,101960.0,7.26884688]
[1737627862744,2.24406581,101970.0,101960.0,7.26884688]
[1737627863167,2.26706581,101970.0,101960.0,7.26884688]
[1737627863369,2.37939618,101970.0,101960.0,7.26884688]
[1737627863578,2.22939618,101970.0,101960.0,7.26884688]
[1737627863751,1.75374347,101970.0,101960.0,7.26884688]
[1737627863955,1.83574347,101970.0,101960.0,7.26784688]
[1737627864158,1.84974347,101970.0,101960.0,7.26684688]
[1737627864414,1.85874347,101970.0,101960.0,7.26784688]
[1737627865999,1.78003948,101970.0,101960.0,7.26884688]
[1737627866481,0.55099219,101970.0,101960.0,7.26884688]
[1737627866672,0.51174419,101970.0,101960.0,7.34474688]
[1737627867442,0.68474419,101970.0,101960.0,7.34474688]
[1737627867632,0.66674419,101970.0,101960.0,7.34274688]
[1737627867840,0.66774419,101970.0,101960.0,7.34274688]
[1737627868193,0.76509148,101970.0,101960.0,7.34274688]
[1737627868392,0.76609148,101970.0,101960.0,7.34274688]
[1737627874065,0.73003148,101970.0,101960.0,7.34274688]
[1737627880508,0.73268419,101970.0,101960.0,7.34274688]
[1737627885096,0.57183712,101970.0,101960.0,7.39234688]
[1737627885290,0.67883712,101970.0,101960.0,7.39234688]
[1737627885541,0.31863087,101970.0,101960.0,7.39234688]
[1737627886165,0.46863087,101970.0,101960.0,7.49042388]
[1737627886588,0.46863087,101970.0,101960.0,7.39234688]
[1737627886793,0.51763087,101970.0,101960.0,7.39234688]
[1737627886994,0.51863087,101970.0,101960.0,7.39234688]
[1737627887409,0.51763087,101970.0,101960.0,7.39234688]
[1737627887838,0.51863087,101970.0,101960.0,7.39234688]
[1737627889165,0.51763087,101970.0,101960.0,7.39234688]
[1737627889564,0.51663087,101970.0,101960.0,7.39234688]
[1737627889758,0.51763087,101970.0,101960.0,7.39234688]
[1737627889962,0.61497816,101970.0,101960.0,7.39234688]
[1737627890179,0.69898489,101970.0,101960.0,7.39234688]
[1737627890591,0.69998489,101970.0,101960.0,7.39234688]
[1737627899324,0.69816569,101970.0,101960.0,7.39234688]
[1737627899518,0.81816569,101970.0,101960.0,7.39234688]
[1737627899778,0.79816569,101970.0,101960.0,7.39234688]
[1737627899985,0.7208184,101970.0,101960.0,7.39234688]
[1737627900481,0.51681167,101970.0,101960.0,7.39234688]
[1737627900687,0.31681167,101970.0,101960.0,7.49042388]
[1737627901101,0.46681167,101970.0,101960.0,7.49042388]
[1737627901307,0.46681167,101970.0,101960.0,7.39234688]
[1737627901466,0.51681167,101970.0,101960.0,7.39234688]
[1737627901969,0.6451357,101970.0,101960.0,7.39234688]
[1737627902194,0.53412897,101970.0,101960.0,7.49042388]
[1737627902413,0.67042047,101970.0,101960.0,7.49042388]
[1737627902728,0.76848847,101970.0,101960.0,7.49042388]
[1737627903660,0.36035402,101970.0,101960.0,7.49042388]
[1737627903865,0.75842202,101970.0,101960.0,7.49042388]
[1737627904076,0.85576931,101970.0,101960.0,7.49042388]
[1737627904860,0.85576931,101970.0,101960.0,7.39234688]
[1737627906409,0.75842202,101970.0,101960.0,7.39234688]
[1737627906920,0.75842202,101970.0,101960.0,7.49042388]
[1737627907773,0.75842202,101970.0,101960.0,7.39234688]
[1737627907924,0.66242875,101970.0,101960.0,7.39234688]
[1737627908131,0.59242875,101970.0,101960.0,7.39234688]
[1737627908343,0.68977604,101970.0,101960.0,7.39234688]
[1737627908490,0.69997848,101970.0,101960.0,7.39234688]
[1737627908696,0.70012088,101970.0,101960.0,7.39234688]
[1737627910641,0.80012088,101970.0,101960.0,7.39234688]
[1737627910868,0.70277359,101970.0,101960.0,7.39234688]
[1737627912951,0.60277359,101970.0,101960.0,7.26684688]
[1737627914053,0.60177359,101970.0,101960.0,7.26684688]
[1737627914253,0.60277359,101970.0,101960.0,7.26684688]
[1737627914371,0.70012088,101970.0,101960.0,7.26684688]
[1737627915228,0.69912088,101970.0,101960.0,7.26684688]
[1737627915455,0.70012088,101970.0,101960.0,7.26684688]
[1737627915749,0.84670487,101970.0,101960.0,7.26684688]
[1737627915947,0.78782487,101970.0,101960.0,7.26684688]
[1737627916435,0.80744776,101970.0,101960.0,7.26684688]
[1737627919437,0.71974377,101970.0,101960.0,7.26684688]
[1737627922928,0.79674377,101970.0,101960.0,7.31574688]
[1737627923136,0.79674377,101970.0,101960.0,7.39844688]
[1737627923581,0.81974377,101970.0,101960.0,7.39844688]
[1737627924008,1.90530777,101970.0,101960.0,7.39844688]
[1737627925283,1.90530777,101970.0,101960.0,7.34954688]
[1737627925498,1.90530777,101970.0,101960.0,7.26684688]
[1737627927922,1.99950777,101970.0,101960.0,7.26684688]
[1737627930241,1.97670377,101970.0,101960.0,7.26684688]
[1737627931079,1.75813977,101970.0,101960.0,7.26684688]
[1737627933523,0.91394377,101970.0,101960.0,7.26684688]
[1737627933926,0.81659648,101970.0,101960.0,7.39544688]
[1737627936981,0.86659648,101970.0,101960.0,7.39544688]
[1737627937282,0.81659648,101970.0,101960.0,7.39544688]
[1737627938873,0.41296686,101970.0,101960.0,7.49352388]
[1737627939091,0.30469642,101970.0,101960.0,7.49352388]
[1737627939504,0.40276442,101970.0,101960.0,7.49352388]
[1737627939710,0.29075769,101970.0,101960.0,7.49352388]
[1737627939912,0.49268969,101970.0,101960.0,7.49352388]
[1737627940118,0.51377115,101970.0,101960.0,7.39544688]
[1737627940442,0.84280828,101970.0,101960.0,7.39544688]
[1737627941234,0.84380828,101970.0,101960.0,7.39544688]
[1737627942096,0.73280155,101970.0,101960.0,7.39544688]
[1737627942326,0.94115557,101970.0,101960.0,7.39544688]
[1737627942525,0.83014884,101970.0,101960.0,7.39544688]
[1737627942658,0.94115557,101970.0,101960.0,7.39544688]
[1737627944188,0.83014884,101970.0,101960.0,7.39544688]
[1737627944367,0.94115557,101970.0,101960.0,7.39544688]
[1737627944762,0.74211171,101970.0,101960.0,7.39544688]
[1737627945191,0.85311844,101970.0,101960.0,7.39544688]
[1737627945367,0.93311844,101970.0,101960.0,7.39544688]
[1737627945760,0.88311844,101970.0,101960.0,7.39544688]
[1737627946601,0.90278325,101970.0,101960.0,7.39544688]
[1737627951597,0.80858325,101970.0,101960.0,7.39544688]
[1737627952912,0.70858325,101970.0,101960.0,7.26684688]
[1737627954114,0.70758325,101970.0,101960.0,7.26684688]
[1737627954368,0.70858325,101970.0,101960.0,7.26684688]
[1737627954597,0.80858325,101970.0,101960.0,7.39894688]
[1737627954830,0.81880601,101970.0,101960.0,7.39894688]
[1737627960304,0.83880601,101970.0,101960.0,7.39894688]
[1737627960711,0.92688045,101970.0,101960.0,7.39894688]
[1737627960890,1.02108045,101970.0,101960.0,7.39894688]
[1737627962419,0.81272643,101970.0,101960.0,7.39894688]
[1737627962633,0.79272643,101970.0,101960.0,7.39894688]
[1737627963042,0.90373316,101970.0,101960.0,7.39894688]
[1737627963263,0.65006162,101970.0,101960.0,7.39894688]
[1737627963462,0.80006162,101970.0,101960.0,7.49702388]
[1737627963669,0.50006162,101970.0,101960.0,7.49702388]
[1737627963870,0.95006162,101970.0,101960.0,7.39894688]
[1737627964118,0.94906162,101970.0,101960.0,7.49702388]
[1737627964508,1.04640891,101970.0,101960.0,7.39894688]
[1737627966073,0.94906162,101970.0,101960.0,7.39894688]
[1737627966900,0.83306835,101970.0,101960.0,7.39894688]
[1737627967441,1.02206162,101970.0,101960.0,7.39894688]
[1737627967638,1.02206162,101970.0,101960.0,7.49702388]
[1737627967639,0.64906162,101970.0,101960.0,7.49702388]
[1737627967819,0.94906162,101970.0,101960.0,7.39894688]
[1737627969518,0.86098718,101970.0,101960.0,7.39894688]
[1737627969732,0.95833447,101970.0,101960.0,7.39894688]
[1737627969932,0.88398718,101970.0,101960.0,7.39894688]
[1737627971618,1.04499391,101970.0,101960.0,7.39894688]
[1737627971789,1.11499391,101970.0,101960.0,7.39894688]
[1737627972324,1.09499391,101970.0,101960.0,7.39894688]
[1737627973259,1.41869391,101970.0,101960.0,7.39894688]
[1737627973486,1.5160412,101970.0,101960.0,7.39894688]
[1737627975078,1.5160412,101970.0,101960.0,7.26684688]
[1737627975281,1.5749212,101970.0,101960.0,7.26684688]
[1737627975481,1.53560685,101970.0,101960.0,7.26684688]
[1737627976658,1.25560685,101970.0,101960.0,7.39204688]
[1737627976965,1.23560685,101970.0,101960.0,7.39204688]
[1737627978058,0.81190685,101970.0,101960.0,7.26684688]
[1737627979246,1.89065185,101970.0,101960.0,7.26684688]
[1737627981669,0.81190685,101970.0,101960.0,7.26684688]
[1737627982300,0.83190685,101970.0,101960.0,7.26684688]
[1737627982433,0.83190685,101970.0,101960.0,7.31224688]
[1737627982658,0.83190685,101970.0,101960.0,7.39364688]
[1737627985262,0.73455956,101970.0,101960.0,7.39364688]
[1737627985485,0.88455956,101970.0,101960.0,7.39364688]
[1737627985688,0.83455956,101970.0,101960.0,7.39364688]
[1737627985885,0.92257598,101970.0,101960.0,7.39364688]
[1737627989554,0.66856925,101970.0,101960.0,7.39364688]
[1737627989759,0.4990036,101970.0,101960.0,7.39364688]
[1737627990066,0.9720036,101970.0,101960.0,7.39364688]
[1737627990274,0.8220036,101970.0,101960.0,7.39364688]
[1737627990751,0.9720036,101970.0,101960.0,7.39364688]
[1737627991635,1.06935089,101970.0,101960.0,7.39364688]
[1737627991879,1.35035762,101970.0,101960.0,7.39364688]
[1737627992122,1.30035762,101970.0,101960.0,7.39364688]
[1737627993834,1.2123412,101970.0,101960.0,7.39364688]
[1737627995496,1.2123412,101970.0,101960.0,7.42364688]
[1737627998168,1.30035762,101970.0,101960.0,7.42364688]
[1737627999580,1.28035762,101970.0,101960.0,7.42364688]
[1737628000118,1.18035762,101970.0,101960.0,7.37824688]
[1737628000334,1.18035762,101970.0,101960.0,7.29684688]
[1737628001297,0.90301033,101970.0,101960.0,7.42454688]
[1737628002087,0.93301033,101970.0,101960.0,7.42454688]
[1737628002301,0.7990036,101970.0,101960.0,7.42454688]
[1737628002507,0.4990036,101970.0,101960.0,7.42454688]
[1737628002932,0.6490036,101970.0,101960.0,7.42454688]
[1737628003175,0.5220036,101970.0,101960.0,7.42454688]
[1737628003370,0.58398718,101970.0,101960.0,7.42454688]
[1737628003890,0.63398718,101970.0,101960.0,7.42454688]
[1737628004079,0.7481412,101970.0,101960.0,7.42454688]
[1737628004323,0.7181412,101970.0,101960.0,7.42454688]
[1737628004535,0.7681412,101970.0,101960.0,7.42454688]
[1737628004950,0.7181412,101970.0,101960.0,7.42454688]
[1737628006144,0.6981412,101970.0,101960.0,7.42454688]
[1737628006349,0.6981412,101970.0,101960.0,7.37494688]
[1737628006546,0.6981412,101970.0,101960.0,7.29684688]
[1737628006983,0.6966412,101970.0,101960.0,7.29684688]
[1737628011086,0.8228032,101970.0,101960.0,7.27723088]
[1737628011372,0.85220504,101970.0,101960.0,7.19876688]
[1737628012242,0.85220504,101970.0,101960.0,7.17915088]
[1737628012452,0.85220504,101970.0,101960.0,7.13991888]
[1737628012816,0.72604304,101970.0,101960.0,7.10068688]
[1737628013016,0.72604304,101970.0,101960.0,7.08107088]
[1737628013238,1.86174304,101970.0,101960.0,7.04183888]
[1737628013438,1.81791204,101970.0,101960.0,7.00260688]
[1737628014158,1.81791204,101970.0,101960.0,6.98299088]
[1737628014592,1.81791204,101970.0,101960.0,6.90452688]
[1737628014728,1.87679204,101970.0,101960.0,6.90452688]
[1737628015153,1.7885102,101970.0,101960.0,6.88491088]
[1737628015378,0.8016512,101970.0,101960.0,6.88491088]
[1737628018282,0.67049391,101970.0,101960.0,7.00741088]
[1737628019209,0.69349391,101970.0,101960.0,7.00741088]
[1737628019623,0.81349391,101970.0,101960.0,7.00741088]
[1737628019777,0.79349391,101970.0,101960.0,7.00741088]
[1737628019983,0.82884894,101970.0,101960.0,7.00741088]
[1737628020179,0.97884894,101970.0,101960.0,7.00741088]
[1737628020377,0.82884894,101970.0,101960.0,7.00741088]
[1737628021107,0.97884894,101970.0,101960.0,7.00741088]
[1737628021689,0.87884894,101970.0,101960.0,7.00741088]
[1737628022681,0.89884894,101970.0,101960.0,7.00741088]
[1737628024116,0.88150165,101970.0,101960.0,7.00741088]
[1737628024320,0.69749492,101970.0,101960.0,7.00741088]
[1737628024523,0.55948718,101970.0,101960.0,7.00741088]
[1737628024762,0.58248718,101970.0,101960.0,7.00741088]
[1737628025517,0.63248718,101970.0,101960.0,7.00741088]
[1737628025721,0.72983447,101970.0,101960.0,7.00741088]
[1737628026075,0.8408412,101970.0,101960.0,7.00741088]
[1737628026849,0.58248718,101970.0,101960.0,7.10548788]
[1737628027037,0.58248718,101970.0,101960.0,7.00741088]
[1737628027710,0.63248718,101970.0,101960.0,7.00741088]
[1737628029342,0.74349391,101970.0,101960.0,7.00741088]
[1737628029947,0.63248718,101970.0,101960.0,7.00741088]
[1737628030185,0.72983447,101970.0,101960.0,7.00741088]
[1737628031760,0.67983447,101970.0,101960.0,7.10548788]
[1737628031940,0.55948718,101970.0,101960.0,7.10548788]
[1737628032343,0.46528718,101970.0,101960.0,7.10548788]
[1737628038824,0.25621245,101970.0,101960.0,7.10548788]
[1737628039230,0.35428045,101970.0,101960.0,7.10548788]
[1737628039652,0.46528718,101970.0,101960.0,7.10548788]
[1737628040072,0.25621245,101970.0,101960.0,7.10548788]
[1737628041688,0.35428045,101970.0,101960.0,7.10548788]
[1737628041901,0.25621245,101970.0,101960.0,7.10548788]
[1737628043814,0.0001424,101970.0,101960.0,7.10548788]
[1737628046767,0.39748969,101970.0,101960.0,7.10548788]
[1737628046967,0.49555769,101970.0,101960.0,7.10548788]
[1737628047227,0.60656442,101970.0,101960.0,7.10548788]
[1737628047606,0.49555769,101970.0,101960.0,7.10548788]
[1737628048231,0.60656442,101970.0,101960.0,7.10548788]
[1737628048760,0.39748969,101970.0,101960.0,7.10548788]
[1737628048985,0.09748969,101970.0,101960.0,7.10548788]
[1737628049814,0.39748969,101970.0,101960.0,7.10548788]
[1737628050285,0.09748969,101970.0,101960.0,7.10548788]
[1737628050488,0.0001424,101970.0,101960.0,7.10548788]
[1737628056463,0.0001424,101970.0,101960.0,7.11534906]
[1737628058026,0.0001424,101970.0,101960.0,7.10548788]
[1737628070035,0.0001424,101970.0,101960.0,7.19119378]
[1737628070249,0.0001424,101970.0,101960.0,7.10548788]
[1737628077025,0.39748969,101970.0,101960.0,7.10548788]
[1737628080695,0.09748969,101970.0,101960.0,7.10548788]
[1737628084951,0.19555769,101970.0,101960.0,7.10548788]
[1737628085130,0.29290498,101970.0,101960.0,7.10548788]
[1737628085469,0.59290498,101970.0,101960.0,7.00741088]
[1737628085637,0.96491844,101970.0,101960.0,7.00741088]
[1737628085853,0.96491844,101970.0,101960.0,6.88491088]
[1737628086000,1.00791844,101970.0,101960.0,6.88491088]
[1737628086214,1.33161844,101970.0,101960.0,6.88491088]
[1737628086416,1.38161844,101970.0,101960.0,6.88491088]
[1737628090306,1.40080003,101970.0,101960.0,6.88491088]
[1737628090524,1.38080003,101970.0,101960.0,6.88491088]
[1737628090933,1.49874807,101970.0,101960.0,6.88491088]
[1737628091335,1.47874807,101970.0,101960.0,6.88491088]
[1737628091870,1.49874807,101970.0,101960.0,6.88491088]
[1737628092342,1.17504807,101970.0,101960.0,6.88491088]
[1737628093514,1.12504807,101970.0,101960.0,6.88491088]
[1737628094511,1.21920807,101970.0,101960.0,6.88491088]
[1737628096051,1.36920807,101970.0,101960.0,6.88491088]
[1737628096267,1.31920807,101970.0,101960.0,6.88491088]
[1737628097045,1.35844807,101970.0,101960.0,6.88491088]
[1737628097405,1.40844807,101970.0,101960.0,6.88491088]
[1737628097599,1.35844807,101970.0,101960.0,6.88491088]
[1737628100479,0.49867246,101970.0,101960.0,7.01311088]
[1737628100910,0.64867246,101970.0,101960.0,7.01311088]
[1737628101537,0.63873216,101970.0,101960.0,7.11118788]
[1737628101737,0.69066416,101970.0,101960.0,7.11118788]
[1737628101951,0.78873216,101970.0,101960.0,7.11118788]
[1737628102081,0.70072442,101970.0,101960.0,7.11118788]
[1737628103853,0.70072442,101970.0,101960.0,7.01311088]
[1737628104077,0.60656442,101970.0,101960.0,7.01311088]
[1737628105024,0.71757115,101970.0,101960.0,7.01311088]
[1737628105200,0.60656442,101970.0,101960.0,7.01311088]
[1737628112761,0.81296922,101970.0,101960.0,7.01311088]
[1737628113012,0.70196249,101970.0,101960.0,7.01311088]
[1737628113783,0.60656442,101970.0,101960.0,7.01311088]
[1737628116674,0.60656442,101970.0,101960.0,7.11118788]
[1737628120876,0.60656442,101970.0,101960.0,7.01311088]
[1737628121445,0.60656442,101970.0,101960.0,7.11118788]
[1737628121669,0.60656442,101970.0,101960.0,7.01311088]
[1737628125748,0.81491844,101970.0,101960.0,7.01311088]
[1737628125879,0.70391171,101970.0,101960.0,7.01311088]
[1737628126841,0.60656442,101970.0,101960.0,7.01311088]
[1737628128301,0.96057115,101970.0,101960.0,7.01311088]
[1737628130794,0.84956442,101970.0,101960.0,7.01311088]
[1737628130966,1.28427115,101970.0,101960.0,7.01311088]
[1737628131311,1.17326442,101970.0,101960.0,7.01311088]
[1737628131583,1.27061171,101970.0,101960.0,7.01311088]
[1737628132289,1.38161844,101970.0,101960.0,7.01311088]
[1737628139133,1.17326442,101970.0,101960.0,7.01311088]
[1737628139631,1.28427115,101970.0,101960.0,7.01311088]
[1737628139844,1.13503462,101970.0,101960.0,7.01311088]
[1737628140022,1.20781155,101970.0,101960.0,7.01311088]
[1737628140384,1.29581929,101970.0,101960.0,7.01311088]
[1737628140773,1.39316658,101970.0,101960.0,7.01311088]
[1737628143082,1.29581929,101970.0,101960.0,7.01311088]
[1737628143296,1.22304236,101970.0,101960.0,7.01311088]
[1737628143500,0.83004236,101970.0,101960.0,7.01311088]
[1737628143663,0.88004236,101970.0,101960.0,7.01311088]
[1737628144801,0.88004236,101970.0,101960.0,7.11118788]
[1737628145229,0.88004236,101970.0,101960.0,7.01311088]
[1737628145593,0.83004236,101970.0,101960.0,7.01311088]
[1737628145778,0.88004236,101970.0,101960.0,7.01311088]
[1737628146172,0.96114209,101970.0,101960.0,7.01311088]
[1737628146856,0.88004236,101970.0,101960.0,7.01311088]
[1737628148304,0.95281929,101970.0,101960.0,7.01311088]
[1737628148512,0.88004236,101970.0,101960.0,7.01311088]
[1737628154188,0.83004236,101970.0,101960.0,7.01311088]
[1737628154350,0.88004236,101970.0,101960.0,7.01311088]
[1737628156165,0.55634236,101970.0,101960.0,7.01311088]
[1737628158082,0.65368965,101970.0,101960.0,7.01311088]
[1737628158715,0.55634236,101970.0,101960.0,7.01311088]
[1737628159475,0.55634236,101970.0,101960.0,7.01260785]
[1737628159899,0.65211929,101970.0,101960.0,6.88440785]
[1737628160098,0.57934236,101970.0,101960.0,6.88440785]
[1737628160308,0.57934236,101970.0,101960.0,6.95990785]
[1737628161672,0.59445077,101970.0,101960.0,6.95990785]
[1737628166326,0.6672277,101970.0,101960.0,6.95990785]
[1737628166493,0.59445077,101970.0,101960.0,6.95990785]
[1737628166742,0.6672277,101970.0,101960.0,6.95990785]
[1737628167347,0.6872277,101970.0,101960.0,6.88440785]
[1737628167535,0.71000463,101970.0,101960.0,6.88440785]
[1737628167736,0.6372277,101970.0,101960.0,6.88440785]
[1737628168477,0.69000463,101970.0,101960.0,6.88440785]
[1737628169213,0.69000463,101970.0,101960.0,6.86479185]
[1737628174783,0.60199689,101970.0,101960.0,6.86479185]
[1737628179818,0.52921996,101970.0,101960.0,6.86479185]
[1737628180018,0.60199689,101970.0,101960.0,6.86479185]
[1737628181843,0.60199689,101970.0,101960.0,6.86428882]
[1737628184368,0.69619689,101970.0,101960.0,6.86428882]
[1737628185977,0.75507689,101970.0,101960.0,6.80544082]
[1737628186206,0.69619689,101970.0,101960.0,6.78582482]
[1737628190076,0.78419168,101970.0,101960.0,6.78582482]
[1737628193009,0.71141475,101970.0,101960.0,6.78582482]
[1737628195127,0.78419168,101970.0,101960.0,6.78582482]
[1737628196416,1.65124568,101970.0,101960.0,6.78582482]
[1737628197230,1.50610668,101970.0,101960.0,6.78582482]
[1737628198164,1.04536089,101970.0,101960.0,6.78582482]
[1737628198377,0.92929589,101970.0,101960.0,6.78582482]
[1737628199628,0.91504089,101970.0,101960.0,6.78582482]
[1737628201086,0.62341996,101970.0,101960.0,6.86622482]
[1737628201613,0.81133589,101970.0,101960.0,6.86622482]
[1737628204163,0.81133589,101970.0,101960.0,6.86572172]
[1737628205678,0.69619689,101970.0,101960.0,6.86572172]
[1737628205853,1.11611289,101970.0,101960.0,6.86572172]
[1737628206258,1.17499289,101970.0,101960.0,6.68724172]
[1737628206458,1.26765837,101970.0,101960.0,6.5917855]
[1737628206636,1.26765837,101970.0,101960.0,6.03996742]
[1737628207124,1.24205402,101970.0,101960.0,5.98111942]
[1737628207334,1.24205402,101970.0,101960.0,5.94188742]
[1737628207545,1.24205402,101970.0,101960.0,5.94288742]
[1737628207722,1.25105402,101970.0,101960.0,5.94288742]
[1737628208231,1.44525402,101970.0,101960.0,5.81599786]
[1737628208445,1.45425402,101970.0,101960.0,5.70596286]
[1737628208910,1.25105402,101970.0,101960.0,5.68072286]
[1737628209110,1.22165441,101970.0,101960.0,5.60225886]
[1737628209319,1.17177441,101970.0,101960.0,5.58364286]
[1737628209529,0.93621541,101970.0,101960.0,5.58364286]
[1737628210563,0.97227541,101970.0,101960.0,5.52479486]
[1737628211359,0.97227541,101970.0,101960.0,5.50517886]
[1737628211796,0.97227541,101970.0,101960.0,5.48531136]
[1737628212581,0.74949848,101970.0,101960.0,5.61201136]
[1737628212741,0.48936455,101970.0,101960.0,5.61201136]
[1737628212943,0.56214148,101970.0,101960.0,5.61201136]
[1737628213412,0.73514148,101970.0,101960.0,5.61201136]
[1737628213797,0.71514148,101970.0,101960.0,5.61201136]
[1737628221390,1.30580348,101970.0,101960.0,5.61201136]
[1737628221593,0.71514148,101970.0,101960.0,5.61201136]
[1737628222458,0.80329652,101970.0,101960.0,5.61201136]
[1737628223305,0.75051959,101970.0,101960.0,5.61201136]
[1737628223523,0.73051959,101970.0,101960.0,5.61201136]
[1737628223722,0.60474966,101970.0,101960.0,5.61201136]
[1737628224233,0.43197273,101970.0,101960.0,5.71008836]
[1737628224445,0.43197273,101970.0,101960.0,5.61201136]
[1737628224639,0.58197273,101970.0,101960.0,5.61201136]
[1737628225054,0.57297273,101970.0,101960.0,5.61101136]
[1737628225470,0.79629698,101970.0,101960.0,5.61101136]
[1737628225675,0.70814194,101970.0,101960.0,5.61101136]
[1737628225848,0.70014194,101970.0,101960.0,5.61001136]
[1737628226314,0.79314194,101970.0,101960.0,5.61001136]
[1737628226508,0.79414194,101970.0,101960.0,5.61001136]
[1737628227230,0.74359462,101970.0,101960.0,5.61001136]
[1737628228728,0.74359462,101970.0,101960.0,5.60950826]
[1737628232178,0.70753462,101970.0,101960.0,5.60950826]
[1737628234906,0.79559037,101970.0,101960.0,5.60950826]
[1737628236926,0.77559037,101970.0,101960.0,5.60950826]
[1737628237127,0.72559037,101970.0,101960.0,5.60950826]
[1737628237329,0.62981344,101970.0,101960.0,5.60950826]
[1737628237527,0.37981344,101970.0,101960.0,5.70758526]
[1737628238359,0.37881344,101970.0,101960.0,5.70758526]
[1737628239158,0.58174544,101970.0,101960.0,5.70758526]
[1737628239980,0.48754544,101970.0,101960.0,5.70758526]
[1737628242384,0.58561344,101970.0,101960.0,5.70758526]
[1737628243594,0.49755769,101970.0,101960.0,5.60950826]
[1737628244006,0.49755769,101970.0,101960.0,5.70758526]
[1737628244216,0.49755769,101970.0,101960.0,5.60950826]
[1737628245341,0.49755769,101970.0,101960.0,5.70758526]
[1737628245550,0.49755769,101970.0,101960.0,5.60950826]
[1737628245951,0.49755769,101970.0,101960.0,5.70758526]
[1737628246508,0.49755769,101970.0,101960.0,5.60950826]
[1737628246762,0.64068191,101970.0,101960.0,5.60950826]
[1737628251054,0.44755769,101970.0,101960.0,5.60950826]
[1737628251442,0.34755769,101970.0,101960.0,5.60950826]
[1737628252164,0.39948969,101970.0,101960.0,5.70758526]
[1737628252986,0.39948969,101970.0,101960.0,5.70708216]
[1737628254183,0.19755769,101970.0,101960.0,5.60900516]
[1737628254459,0.30840382,101970.0,101960.0,5.60900516]
[1737628254692,0.56544978,101970.0,101960.0,5.60900516]
[1737628258360,0.48140382,101970.0,101960.0,5.60900516]
[1737628260687,0.49113859,101970.0,101960.0,5.60900516]
[1737628263763,0.34755769,101970.0,101960.0,5.60900516]
[1737628263987,0.39948969,101970.0,101960.0,5.70708216]
[1737628264994,0.49755769,101970.0,101960.0,5.70708216]
[1737628265348,0.60840382,101970.0,101960.0,5.60900516]
[1737628266964,0.49755769,101970.0,101960.0,5.60900516]
[1737628267159,0.60840382,101970.0,101960.0,5.60900516]
[1737628267906,0.49755769,101970.0,101960.0,5.60900516]
[1737628269708,0.49755769,101970.0,101960.0,5.70708216]
[1737628270122,0.39948969,101970.0,101960.0,5.70708216]
[1737628271602,0.49755769,101970.0,101960.0,5.70708216]
[1737628272024,0.60840382,101970.0,101960.0,5.60900516]
[1737628272530,0.75840382,101970.0,101960.0,5.60900516]
[1737628275381,0.75840382,101970.0,101960.0,5.60850206]
[1737628275563,0.85575111,101970.0,101960.0,5.60850206]
[1737628276762,0.86550212,101970.0,101960.0,5.60850206]
[1737628277179,0.6573087,101970.0,101960.0,5.60850206]
[1737628277375,0.64755769,101970.0,101960.0,5.60850206]
[1737628278208,0.34755769,101970.0,101960.0,5.60850206]
[1737628278588,0.39948969,101970.0,101960.0,5.70657906]
[1737628280420,0.39948969,101970.0,101960.0,5.70638646]
[1737628280614,0.39948969,101970.0,101960.0,5.79209236]
[1737628280806,0.09948969,101970.0,101960.0,5.70638646]
[1737628281714,0.0021424,101970.0,101960.0,5.81723259]
[1737628281941,0.38819805,101990.0,101970.0,0.124]
[1737628282181,0.48554534,101990.0,101980.0,0.228158]
[1737628282439,0.48554534,101990.0,101980.0,0.2705857]
[1737628282631,0.48554534,101990.0,101980.0,0.228158]
[1737628282926,0.58359334,101990.0,101980.0,0.228158]
[1737628283833,0.39543947,101990.0,101980.0,0.1301]
[1737628284091,0.39643947,101990.0,101980.0,0.1301]
[1737628284908,0.39543947,101990.0,101980.0,0.1301]
[1737628285089,0.19753759,101990.0,101980.0,0.1301]
[1737628287366,0.19753759,101990.0,101980.0,0.228158]